bitfinex-derivatives/quotes_BNBF0:USTF0_20250401
["timestamp","ask_amount","ask_price","bid_price","bid_amount"]
[1743545706327,0.28519798,610.92,609.68,0.32804093]
[1743545706328,0.3011564,610.9,609.68,0.32804093]
[1743545706534,0.3011564,610.91,609.68,0.32804093]
[1743545706728,0.3011564,610.9,609.68,0.32804093]
[1743545706927,0.3011564,610.89,609.68,0.32804093]
[1743545707129,0.3011564,610.91,609.68,0.32804093]
[1743545707331,0.3011564,610.9,609.68,0.32804093]
[1743545707522,0.3011564,610.89,609.68,0.32804093]
[1743545707724,0.3011564,610.88,609.68,0.32804093]
[1743545707927,0.3011564,610.87,609.68,0.32804093]
[1743545708223,0.28519798,610.92,609.68,0.32804093]
[1743545708224,0.3011564,610.86,609.68,0.32804093]
[1743545708430,0.3011564,610.91,609.68,0.32804093]
[1743545708728,0.3011564,610.9,609.68,0.32804093]
[1743545708924,0.3011564,610.89,609.68,0.32804093]
[1743545709123,0.3011564,610.88,609.68,0.32804093]
[1743545709327,0.3011564,610.91,609.68,0.32804093]
[1743545709628,0.3011564,610.9,609.68,0.32804093]
[1743545709830,0.3011564,610.89,609.68,0.32804093]
[1743545710030,0.3011564,610.88,609.68,0.32804093]
[1743545710231,0.30114314,610.87,609.68,0.32804093]
[1743545710431,0.30114314,610.89,609.68,0.32804093]
[1743545710630,0.30114314,610.88,609.68,0.32804093]
[1743545710931,0.30114314,610.87,609.68,0.32804093]
[1743545711125,0.30114314,610.89,609.68,0.32804093]
[1743545711332,0.30114314,610.88,609.68,0.32804093]
[1743545711531,0.30114314,610.89,609.68,0.32804093]
[1743545711734,0.28517928,610.9,609.68,0.32804093]
[1743545711932,0.30114745,610.89,609.68,0.32804093]
[1743545713338,1.016,610.88,609.68,0.32804093]
[1743545713634,0.30117137,610.87,609.68,0.32804093]
[1743545714639,0.30117137,610.86,609.68,0.32804093]
[1743545715030,0.30117137,610.85,609.68,0.32804093]
[1743545715241,0.30117137,610.84,609.68,0.32804093]
[1743545715639,0.30117137,610.83,609.68,0.32804093]
[1743545715834,0.30117137,610.82,609.68,0.32804093]
[1743545716035,0.28522486,610.82,609.68,0.32804093]
[1743545716340,0.30117137,610.81,609.68,0.32804093]
[1743545719041,0.30117137,610.8,609.68,0.32804093]
[1743545719242,0.30117137,610.79,609.68,0.32804093]
[1743545719743,0.28523304,610.8,609.68,0.32804093]
[1743545719744,0.30123563,610.78,609.68,0.32804093]
[1743545719942,0.30123563,610.77,609.68,0.32804093]
[1743545720139,0.30123563,610.76,609.68,0.32804093]
[1743545720345,0.30123563,610.79,609.68,0.32804093]
[1743545720644,0.30123563,610.78,609.68,0.32804093]
[1743545720846,0.30123563,610.77,609.68,0.32804093]
[1743545721045,0.30123563,610.76,609.68,0.32804093]
[1743545721240,0.30123563,610.79,609.68,0.32804093]
[1743545722141,0.30123563,610.87,609.68,0.32804093]
[1743545722342,0.28524707,610.78,609.68,0.32804093]
[1743545722542,0.30123563,610.77,609.68,0.32804093]
[1743545722739,0.3274019,610.87,609.68,0.32804093]
[1743545723045,0.30124775,610.86,609.68,0.32804093]
[1743545723746,0.62865501,610.86,609.68,0.32804093]
[1743545724041,0.58648898,610.85,609.68,0.32804093]
[1743545724245,0.30124775,610.84,609.68,0.32804093]
[1743545724545,0.30125013,610.83,609.68,0.32804093]
[1743545724847,0.30125013,610.82,609.68,0.32804093]
[1743545725047,0.2852459,610.82,609.68,0.32804093]
[1743545725243,0.30125013,610.81,609.68,0.32804093]
[1743545725449,0.30124834,610.8,609.68,0.32804093]
[1743545725746,0.30124834,610.79,609.68,0.32804093]
[1743545725946,0.2852459,610.82,609.68,0.32804093]
[1743545726149,0.30124774,610.81,609.68,0.32804093]
[1743545728149,0.30124774,610.85,609.68,0.32804093]
[1743545728350,0.96224941,610.8,609.68,0.32804093]
[1743545728550,0.30124774,610.79,609.68,0.32804093]
[1743545731148,0.28522135,610.78,609.68,0.32804093]
[1743545731353,0.30124774,610.77,609.68,0.32804093]
[1743545734055,0.30124774,610.79,609.68,0.32804093]
[1743545734356,0.28523304,610.76,609.68,0.32804093]
[1743545734557,0.30124774,610.75,609.68,0.32804093]
[1743545737054,0.28525175,610.74,609.68,0.32804093]
[1743545737259,0.30124774,610.73,609.68,0.32804093]
[1743545740160,0.58650183,610.72,609.68,0.32804093]
[1743545740360,0.30124774,610.71,609.68,0.32804093]
[1743545746064,0.30124774,610.7,609.68,0.32804093]
[1743545746265,0.30124774,610.79,609.68,0.32804093]
[1743545746459,0.28525642,610.7,609.68,0.32804093]
[1743545746758,0.30124739,610.69,609.68,0.32804093]
[1743545746963,0.30124739,610.79,609.68,0.32804093]
[1743545747167,0.30124739,610.78,609.68,0.32804093]
[1743545747365,0.28524707,610.68,609.68,0.32804093]
[1743545747664,0.30124739,610.67,609.68,0.32804093]
[1743545747859,0.28525058,610.67,609.68,0.32804093]
[1743545748164,0.30124739,610.66,609.68,0.32804093]
[1743545749665,0.28525058,610.67,609.68,0.32804093]
[1743545749863,0.916,610.65,609.68,0.32804093]
[1743545750164,0.30124776,610.64,609.68,0.32804093]
[1743545751358,0.30124776,610.63,609.68,0.32804093]
[1743545751664,0.30124776,610.62,609.68,0.32804093]
[1743545751964,0.30124776,610.61,609.68,0.32804093]
[1743545752160,0.30124776,610.6,609.68,0.32804093]
[1743545754360,0.28526461,610.61,609.68,0.32804093]
[1743545754566,0.30125552,610.6,609.68,0.32804093]
[1743545755167,0.28526928,610.59,609.68,0.32804093]
[1743545755465,0.30125552,610.58,609.68,0.32804093]
[1743545757061,1.08225552,610.58,609.68,0.32804093]
[1743545757366,0.30125552,610.57,609.68,0.32804093]
[1743545757566,0.30127431,610.56,609.68,0.32804093]
[1743545757767,0.30127431,610.57,609.68,0.32804093]
[1743545758064,0.30127431,610.56,609.68,0.32804093]
[1743545758368,0.28527747,610.56,609.68,0.32804093]
[1743545760370,0.301267,610.55,609.68,0.32804093]
[1743545761062,0.301267,610.57,609.68,0.32804093]
[1743545761267,0.28527981,610.54,609.68,0.32804093]
[1743545761569,0.301267,610.53,609.68,0.32804093]
[1743545764072,0.301267,610.52,609.68,0.32804093]
[1743545764269,0.301267,610.51,609.68,0.32804093]
[1743545766673,0.28528215,610.52,609.68,0.32804093]
[1743545766873,0.781,610.58,609.68,0.32804093]
[1743545767073,0.30127199,610.57,609.68,0.32804093]
[1743545767278,0.28527747,610.51,609.68,0.32804093]
[1743545769784,0.781,610.58,609.68,0.32804093]
[1743545769973,0.30127004,610.57,609.68,0.32804093]
[1743545770278,0.58654751,610.57,609.68,0.32804093]
[1743545770476,0.30127004,610.56,609.68,0.32804093]
[1743545771274,0.28527747,610.57,609.68,0.32804093]
[1743545771474,0.30126453,610.56,609.68,0.32804093]
[1743545772778,0.781,610.58,609.68,0.32804093]
[1743545773180,0.28524356,610.55,609.68,0.32804093]
[1743545775678,0.758,610.54,609.68,0.32804093]
[1743545779080,0.28524707,610.53,609.68,0.32804093]
[1743545779683,0.758,610.54,609.68,0.32804093]
[1743545780378,0.966,610.53,609.68,0.32804093]
[1743545786582,0.30119681,610.52,609.68,0.32804093]
[1743545787187,0.966,610.53,609.68,0.32804093]
[1743545788582,0.30122886,610.52,609.68,0.32804093]
[1743545793893,0.3012394,610.51,609.68,0.32804093]
[1743545794189,0.3012394,610.5,609.68,0.32804093]
[1743545794392,0.3012394,610.52,609.68,0.32804093]
[1743545794594,0.966,610.53,609.68,0.32804093]
[1743545794595,0.3012394,610.51,609.68,0.32804093]
[1743545794796,0.3012394,610.52,609.68,0.32804093]
[1743545794991,0.3012394,610.51,609.68,0.32804093]
[1743545795194,0.3012394,610.52,609.68,0.32804093]
[1743545795388,0.3012394,610.51,609.68,0.32804093]
[1743545795590,0.3012394,610.5,609.68,0.32804093]
[1743545795794,0.28528332,610.5,609.68,0.32804093]
[1743545796093,0.3012394,610.49,609.68,0.32804093]
[1743545796991,0.966,610.53,609.68,0.32804093]
[1743545797187,0.30125701,610.52,609.68,0.32804093]
[1743545797392,0.28528332,610.48,609.68,0.32804093]
[1743545797594,0.30125701,610.47,609.68,0.32804093]
[1743545799293,0.30125304,610.46,609.68,0.32804093]
[1743545799493,0.30125304,610.47,609.68,0.32804093]
[1743545799694,0.30125304,610.46,609.68,0.32804093]
[1743545799989,0.30125304,610.45,609.68,0.32804093]
[1743545800395,0.30125304,610.44,609.68,0.32804093]
[1743545801790,0.30125492,610.43,609.68,0.32804093]
[1743545801993,0.30125492,610.44,609.68,0.32804093]
[1743545802191,0.28528916,610.45,609.68,0.32804093]
[1743545802192,0.30125492,610.43,609.68,0.32804093]
[1743545802396,0.30125492,610.42,609.68,0.32804093]
[1743545802589,0.30125492,610.41,609.68,0.32804093]
[1743545802790,0.30125492,610.4,609.68,0.32804093]
[1743545803098,0.28529267,610.4,609.68,0.32804093]
[1743545803298,0.30125915,610.39,609.68,0.32804093]
[1743545804805,0.794,610.38,609.68,0.32804093]
[1743545805003,0.30125915,610.37,609.68,0.32804093]
[1743545806505,0.28530086,610.36,609.68,0.32804093]
[1743545808904,0.794,610.38,609.68,0.32804093]
[1743545809506,0.28530086,610.37,609.68,0.32804093]
[1743545811810,0.794,610.38,609.68,0.32804093]
[1743545812312,0.28531723,610.37,609.68,0.32804093]
[1743545814909,0.794,610.38,609.68,0.32804093]
[1743545815410,0.28532191,610.36,609.68,0.32804093]
[1743545818011,0.794,610.38,609.68,0.32804093]
[1743545818212,0.28530086,610.35,609.68,0.32804093]
[1743545820314,0.794,610.38,609.68,0.32804093]
[1743545820716,0.28530904,610.44,609.68,0.32804093]
[1743545823218,1.15530904,610.44,609.68,0.32804093]
[1743545823815,0.87,610.44,609.68,0.32804093]
[1743545824218,1.15527864,610.44,609.68,0.32804093]
[1743545826924,0.87,610.44,609.68,0.32804093]
[1743545827422,1.15527513,610.44,609.68,0.32804093]
[1743545827923,0.87,610.44,609.68,0.32804093]
[1743545834826,1.69,610.44,609.68,0.32804093]
[1743545845238,1.97528332,610.44,609.68,0.32804093]
[1743545845539,1.69,610.44,609.68,0.32804093]
[1743545898686,1.69,610.44,609.76,1.21620832]
[1743545898887,1.69,610.44,609.76,1.54420622]
[1743545901194,1.69,610.44,609.79,1.21620832]
[1743545902691,1.69,610.44,609.76,0.3279979]
[1743545917404,0.28525175,610.43,609.76,0.3279979]
[1743545920005,2.4978259,611.61,609.76,0.3279979]
[1743545920209,0.32701646,611.59,609.76,0.3279979]
[1743545920508,0.28514306,610.42,609.76,0.3279979]
[1743545920714,0.981,611.58,609.76,0.3279979]
[1743545920906,0.3270325,611.56,609.76,0.3279979]
[1743545921106,0.30122824,611.55,609.76,0.3279979]
[1743545921408,0.32704855,611.53,609.76,0.3279979]
[1743545921608,0.30122824,611.52,609.76,0.3279979]
[1743545921806,0.32706459,611.5,609.76,0.3279979]
[1743545922006,0.30122824,611.49,609.76,0.3279979]
[1743545922201,0.32708064,611.47,609.76,0.3279979]
[1743545922510,0.30122824,611.46,609.76,0.3279979]
[1743545922701,0.32709668,611.44,609.76,0.3279979]
[1743545922906,0.30122824,611.43,609.76,0.3279979]
[1743545923302,0.32711273,611.41,609.76,0.3279979]
[1743545923506,0.30122824,611.4,609.76,0.3279979]
[1743545923707,0.32712879,611.38,609.76,0.3279979]
[1743545923903,0.30122824,611.37,609.76,0.3279979]
[1743545924108,0.32713949,611.36,609.76,0.3279979]
[1743545924409,0.30122824,611.35,609.76,0.3279979]
[1743545924602,0.32715019,611.34,609.76,0.3279979]
[1743545924805,0.30122824,611.33,609.76,0.3279979]
[1743545925005,0.32716089,611.32,609.76,0.3279979]
[1743545925407,0.30122824,611.31,609.76,0.3279979]
[1743545925606,0.3271716,611.3,609.76,0.3279979]
[1743545925808,0.30122824,611.29,609.76,0.3279979]
[1743545926011,0.3271823,611.28,609.76,0.3279979]
[1743545926209,0.30122824,611.27,609.76,0.3279979]
[1743545926411,0.32719301,611.26,609.76,0.3279979]
[1743545926611,0.30122824,611.25,609.76,0.3279979]
[1743545926813,0.32720371,611.24,609.76,0.3279979]
[1743545927012,0.30122824,611.23,609.76,0.3279979]
[1743545927313,0.32721442,611.22,609.76,0.3279979]
[1743545927513,0.30122824,611.21,609.76,0.3279979]
[1743545927716,0.32722513,611.2,609.76,0.3279979]
[1743545927914,0.30122824,611.19,609.76,0.3279979]
[1743545928316,0.62845872,611.19,609.76,0.3279979]
[1743545928610,0.30122824,611.18,609.76,0.3279979]
[1743545931419,0.30104809,611.17,609.76,0.3279979]
[1743545931715,0.30104809,611.16,609.76,0.3279979]
[1743545931915,0.30104809,611.18,609.76,0.3279979]
[1743545932115,0.30104809,611.17,609.76,0.3279979]
[1743545932319,0.28511737,611.15,609.76,0.3279979]
[1743545932521,0.30104809,611.14,609.76,0.3279979]
[1743545932915,0.28511737,611.15,609.76,0.3279979]
[1743545933116,0.30105243,611.14,609.76,0.3279979]
[1743545934523,0.28511737,611.15,609.76,0.3279979]
[1743545934821,0.3010526,611.14,609.76,0.3279979]
[1743545935223,0.3010526,611.18,609.76,0.3279979]
[1743545935424,0.28510335,611.13,609.76,0.3279979]
[1743545935725,0.3010526,611.12,609.76,0.3279979]
[1743545936424,0.30105952,611.11,609.76,0.3279979]
[1743545936725,0.28510335,611.13,609.76,0.3279979]
[1743545936928,0.6283801,611.12,609.76,0.3279979]
[1743545937125,0.62838546,611.11,609.76,0.3279979]
[1743545937325,0.30111214,611.1,609.76,0.3279979]
[1743545938327,0.28514189,611.09,609.76,0.3279979]
[1743545938631,0.30111597,611.08,609.76,0.3279979]
[1743545938928,0.28514189,611.09,609.76,0.3279979]
[1743545941030,0.30111585,611.08,609.76,0.3279979]
[1743545941229,0.28519447,611.08,609.76,0.3279979]
[1743545941425,0.30111585,611.07,609.76,0.3279979]
[1743545942228,0.30113191,611.06,609.76,0.3279979]
[1743545942425,0.30113191,611.07,609.76,0.3279979]
[1743545942627,0.30113191,611.06,609.76,0.3279979]
[1743545942826,0.30113191,611.05,609.76,0.3279979]
[1743545943024,0.28519447,611.08,609.76,0.3279979]
[1743545943423,0.30113221,611.07,609.76,0.3279979]
[1743545944327,0.58633136,611.06,609.76,0.3279979]
[1743545944525,0.30113221,611.05,609.76,0.3279979]
[1743545945533,0.28519915,611.06,609.76,0.3279979]
[1743545946733,0.30112184,611.05,609.76,0.3279979]
[1743545947137,0.30112184,611.06,609.76,0.3279979]
[1743545947333,0.28520149,611.04,609.76,0.3279979]
[1743545947534,0.30112184,611.03,609.76,0.3279979]
[1743545948531,0.30112535,611.02,609.76,0.3279979]
[1743545948727,0.30112535,611.01,609.76,0.3279979]
[1743545948932,0.30112535,611.0,609.76,0.3279979]
[1743545949128,0.30112535,610.99,609.76,0.3279979]
[1743545949332,0.30112535,610.98,609.76,0.3279979]
[1743545949527,0.30112535,610.97,609.76,0.3279979]
[1743545949726,0.30112535,610.96,609.76,0.3279979]
[1743545949932,0.697,611.07,609.76,0.3279979]
[1743545949933,0.30112535,610.95,609.76,0.3279979]
[1743545950134,0.30112535,610.94,609.76,0.3279979]
[1743545950434,0.30112535,610.93,609.76,0.3279979]
[1743545954829,0.301136,610.92,609.76,0.3279979]
[1743545955134,0.301136,610.91,609.76,0.3279979]
[1743545955336,0.301136,610.9,609.76,0.3279979]
[1743545955636,0.301136,610.89,609.76,0.3279979]
[1743545955835,0.301136,610.93,609.76,0.3279979]
[1743545956135,0.301136,610.92,609.76,0.3279979]
[1743545956331,0.28518162,610.88,609.76,0.3279979]
[1743545956536,0.301136,610.87,609.76,0.3279979]
[1743545958839,1.096,610.86,609.76,0.3279979]
[1743545959032,0.301136,610.85,609.76,0.3279979]
[1743545959440,0.58631645,610.85,609.76,0.3279979]
[1743545959635,0.30113758,610.84,609.76,0.3279979]
[1743545962042,0.30113758,610.85,609.76,0.3279979]
[1743545962242,0.28518045,610.83,609.76,0.3279979]
[1743545962443,0.30113758,610.82,609.76,0.3279979]
[1743545962843,0.30113679,610.81,609.76,0.3279979]
[1743545963045,0.30113679,610.8,609.76,0.3279979]
[1743545963245,0.30113679,610.79,609.76,0.3279979]
[1743545963544,0.30113679,610.78,609.76,0.3279979]
[1743545963743,0.30113679,610.77,609.76,0.3279979]
[1743545963947,0.30113679,610.76,609.76,0.3279979]
[1743545964141,0.30113679,610.75,609.76,0.3279979]
[1743545964340,0.30113679,610.74,609.76,0.3279979]
[1743545964547,0.30113679,610.82,609.76,0.3279979]
[1743545964747,0.30113679,610.81,609.76,0.3279979]
[1743545964942,0.30113679,610.82,609.76,0.3279979]
[1743545965147,0.30113679,610.81,609.76,0.3279979]
[1743545965341,0.58630088,610.8,609.76,0.3279979]
[1743545965546,0.30113679,610.79,609.76,0.3279979]
[1743545966051,0.30114104,610.78,609.76,0.3279979]
[1743545966348,0.30114104,610.77,609.76,0.3279979]
[1743545968349,0.2851676,610.76,609.76,0.3279979]
[1743545968547,0.30114104,610.75,609.76,0.3279979]
[1743545969150,0.2851676,610.76,609.76,0.3279979]
[1743545969453,0.30114288,610.75,609.76,0.3279979]
[1743545970049,0.30114288,610.75,609.76,1.54420622]
[1743545970850,0.30114526,610.74,609.76,1.54420622]
[1743545971051,0.30114526,610.75,609.76,1.54420622]
[1743545971249,0.30114526,610.74,609.76,1.54420622]
[1743545971446,0.28516526,610.73,609.76,1.54420622]
[1743545971650,0.30114526,610.72,609.76,1.54420622]
[1743545972352,0.28516526,610.73,609.76,1.54420622]
[1743545972652,0.30114243,610.72,609.76,1.54420622]
[1743545973050,0.30114243,610.72,609.8,1.21620832]
[1743545973249,0.30114243,610.72,609.81,0.327971]
[1743545974356,0.28516409,610.71,609.81,0.327971]
[1743545974655,0.28516409,610.71,609.84,1.21620832]
[1743545974656,0.30114243,610.7,609.84,1.21620832]
[1743545975656,0.30114479,610.69,609.84,1.21620832]
[1743545975959,0.28516409,610.71,609.84,1.21620832]
[1743545976162,0.3011445,610.7,609.81,0.327971]
[1743545976561,0.28516409,610.71,609.81,0.327971]
[1743545976958,0.985,610.78,609.81,0.327971]
[1743545977357,0.30114453,610.77,609.81,0.327971]
[1743545978461,0.2851676,610.76,609.81,0.327971]
[1743545978663,0.30114453,610.75,609.81,0.327971]
[1743545978858,0.2851676,610.76,609.81,0.327971]
[1743545979058,0.30113458,610.75,609.81,0.327971]
[1743545980163,0.30113458,610.77,609.81,0.327971]
[1743545980358,0.28516643,610.74,609.81,0.327971]
[1743545982862,0.985,610.78,609.81,0.327971]
[1743545983065,0.30112701,610.77,609.81,0.327971]
[1743545983359,0.28516292,610.73,609.81,0.327971]
[1743545984966,0.30112697,610.72,609.81,0.327971]
[1743545985165,0.28516292,610.73,609.81,0.327971]
[1743545986062,0.985,610.78,609.81,0.327971]
[1743545986258,1.07,610.72,609.81,0.327971]
[1743545986463,1.35515708,610.72,609.81,0.327971]
[1743545989067,1.07,610.72,609.81,0.327971]
[1743545989262,0.28514189,610.71,609.81,0.327971]
[1743545989768,0.721,610.7,609.81,0.327971]
[1743545992369,0.28514423,610.69,609.81,0.327971]
[1743545994972,0.721,610.7,609.81,0.327971]
[1743545995373,0.2851454,610.69,609.81,0.327971]
[1743546001079,1.07,610.72,609.81,0.327971]
[1743546001879,0.30107797,610.71,609.81,0.327971]
[1743546003080,1.07,610.72,609.81,0.327971]
[1743546003677,1.44407764,610.71,609.81,0.327971]
[1743546003879,1.143,610.71,609.81,0.327971]
[1743546004682,1.143,610.71,609.9,1.21620832]
[1743546004884,1.143,610.71,609.91,0.32791723]
[1743546011588,1.143,610.71,609.91,2.71521956]
[1743546013192,1.143,610.71,609.91,0.32791723]
[1743546013785,0.30110415,610.7,609.91,0.32791723]
[1743546016493,0.2851454,610.69,609.91,0.32791723]
[1743546016792,0.30110415,610.68,609.91,0.32791723]
[1743546018390,0.2851454,610.69,609.91,0.32791723]
[1743546018996,1.143,610.71,609.91,0.32791723]
[1743546019189,0.3011273,610.7,609.91,0.32791723]
[1743546019392,0.28516059,610.68,609.91,0.32791723]
[1743546020489,0.30114052,610.67,609.91,0.32791723]
[1743546024398,0.28516059,610.68,609.91,0.32791723]
[1743546025098,1.143,610.71,609.91,0.32791723]
[1743546025296,0.28517928,610.67,609.91,0.32791723]
[1743546026795,0.30114307,610.66,609.91,0.32791723]
[1743546027999,1.143,610.71,609.91,0.32791723]
[1743546028299,0.30114323,610.7,609.91,0.32791723]
[1743546028499,0.28518629,610.65,609.91,0.32791723]
[1743546028696,0.30114323,610.64,609.91,0.32791723]
[1743546029001,0.28518629,610.65,609.91,0.32791723]
[1743546030203,0.3011444,610.64,609.91,0.32791723]
[1743546032904,0.30114687,610.63,609.91,0.32791723]
[1743546033199,0.28518629,610.65,609.91,0.32791723]
[1743546033899,1.07,610.72,609.91,0.32791723]
[1743546034100,0.30114746,610.71,609.91,0.32791723]
[1743546034301,0.28517928,610.64,609.91,0.32791723]
[1743546034501,0.974,610.71,609.91,0.32791723]
[1743546034700,0.30114929,610.7,609.91,0.32791723]
[1743546035407,0.28518512,610.69,609.91,0.32791723]
[1743546035604,0.30114929,610.68,609.91,0.32791723]
[1743546037210,0.30114929,610.67,609.91,0.32791723]
[1743546037404,0.30114929,610.66,609.91,0.32791723]
[1743546037706,0.285212,610.67,609.91,0.32791723]
[1743546038008,1.04,610.65,609.91,0.32791723]
[1743546038202,0.3011587,610.64,609.91,0.32791723]
[1743546039510,0.30119638,610.63,609.91,0.32791723]
[1743546039707,0.30119638,610.64,609.91,0.32791723]
[1743546039909,0.30119638,610.63,609.91,0.32791723]
[1743546040209,0.30119638,610.62,609.91,0.32791723]
[1743546040409,0.30119638,610.64,609.91,0.32791723]
[1743546040610,0.30119638,610.63,609.91,0.32791723]
[1743546040806,1.04,610.65,609.91,0.32791723]
[1743546040807,0.30119638,610.62,609.91,0.32791723]
[1743546041007,0.30119638,610.61,609.91,0.32791723]
[1743546041204,0.30119638,610.64,609.91,0.32791723]
[1743546041405,0.30119638,610.63,609.91,0.32791723]
[1743546041605,0.30119638,610.64,609.91,0.32791723]
[1743546041910,0.30119638,610.63,609.91,0.32791723]
[1743546042106,0.30119638,610.62,609.91,0.32791723]
[1743546042304,0.30119638,610.61,609.91,0.32791723]
[1743546042508,0.30119638,610.6,609.91,0.32791723]
[1743546042708,1.04,610.65,609.91,0.32791723]
[1743546042907,0.30120347,610.64,609.91,0.32791723]
[1743546043310,0.58644586,610.64,609.91,0.32791723]
[1743546043507,0.30120347,610.63,609.91,0.32791723]
[1743546044311,0.28524239,610.64,609.91,0.32791723]
[1743546044611,0.30120288,610.63,609.91,0.32791723]
[1743546049217,0.30120288,610.64,609.91,0.32791723]
[1743546049417,0.30120288,610.63,609.91,0.32791723]
[1743546049719,0.58644411,610.62,609.91,0.32791723]
[1743546049911,0.30120288,610.61,609.91,0.32791723]
[1743546051017,0.30120226,610.6,609.91,0.32791723]
[1743546051318,0.30120226,610.59,609.91,0.32791723]
[1743546051615,0.30120226,610.58,609.91,0.32791723]
[1743546051812,0.30120226,610.57,609.91,0.32791723]
[1743546052015,0.30120226,610.56,609.91,0.32791723]
[1743546052217,0.30120226,610.55,609.91,0.32791723]
[1743546052416,0.30120226,610.54,609.91,0.32791723]
[1743546052620,0.28523772,610.56,609.91,0.32791723]
[1743546052621,0.30120226,610.55,609.91,0.32791723]
[1743546052816,0.28523772,610.56,609.91,0.32791723]
[1743546053118,0.30120424,610.55,609.91,0.32791723]
[1743546055322,1.04,610.65,609.91,0.32791723]
[1743546055521,0.28525525,610.54,609.91,0.32791723]
[1743546055723,1.04,610.65,609.91,0.32791723]
[1743546056024,0.30120424,610.64,609.91,0.32791723]
[1743546056524,0.28524473,610.63,609.91,0.32791723]
[1743546056718,0.28524473,610.63,609.49,1.21620832]
[1743546056921,0.28524473,610.63,609.5,0.32813781]
[1743546058026,1.04,610.65,609.5,0.32813781]
[1743546058526,0.28527513,610.64,609.5,0.32813781]
[1743546061061,1.04,610.65,609.5,0.32813781]
[1743546061367,0.28532776,610.63,609.5,0.32813781]
[1743546062955,0.30125618,610.62,609.5,0.32813781]
[1743546063848,0.28532776,610.63,609.5,0.32813781]
[1743546064047,1.04,610.65,609.5,0.32813781]
[1743546064552,0.28529033,610.62,609.5,0.32813781]
[1743546067131,1.004,610.64,609.5,0.32813781]
[1743546067333,0.28528916,610.61,609.5,0.32813781]
[1743546071731,0.30121986,610.6,609.5,0.32813781]
[1743546073428,0.58651019,610.59,609.5,0.32813781]
[1743546073632,0.30121986,610.58,609.5,0.32813781]
[1743546075333,0.30121986,610.58,609.5,1.54434613]
[1743546076335,0.30121986,610.63,609.5,1.54434613]
[1743546076533,0.28526227,610.57,609.5,1.54434613]
[1743546076734,0.30121986,610.56,609.5,1.54434613]
[1743546078337,0.30121875,610.55,609.5,1.54434613]
[1743546078533,0.30121875,610.56,609.5,1.54434613]
[1743546078737,0.30121875,610.55,609.5,1.54434613]
[1743546078938,0.28526227,610.57,609.5,1.54434613]
[1743546079840,0.28526227,610.57,609.58,1.21620832]
[1743546080034,0.28526227,610.57,609.59,0.32808937]
[1743546081737,0.28526227,610.57,609.48,1.21620832]
[1743546082241,1.007,610.57,609.48,1.21620832]
[1743546082442,0.28523187,610.56,609.48,1.21620832]
[1743546084143,0.28523187,610.56,609.47,1.21620832]
[1743546085146,1.007,610.57,609.47,1.21620832]
[1743546085540,0.28524239,610.55,609.47,1.21620832]
[1743546087649,0.28524239,610.55,609.44,1.21620832]
[1743546088044,1.007,610.57,609.44,1.21620832]
[1743546088446,0.2852459,610.56,609.44,1.21620832]
[1743546091846,0.2852459,610.56,609.56,1.21620832]
[1743546097052,1.007,610.57,609.56,1.21620832]
[1743546097452,0.28523187,610.56,609.56,1.21620832]
[1743546097954,1.183,610.55,609.56,1.21620832]
[1743546098655,1.183,610.55,609.64,1.21620832]
[1743546100358,1.183,610.55,609.34,1.21620832]
[1743546100652,0.28522486,610.54,609.34,1.21620832]
[1743546100855,1.183,610.55,609.34,1.21620832]
[1743546102858,1.183,610.55,609.48,1.21620832]
[1743546105259,0.937,610.54,609.48,1.21620832]
[1743546105561,0.937,610.54,609.44,1.21620832]
[1743546108062,0.937,610.54,609.41,1.21620832]
[1743546109665,0.937,610.54,609.47,1.21620832]
[1743546112471,0.937,610.54,609.73,1.21620832]
[1743546112669,0.937,610.54,609.74,0.32800865]
[1743546116472,1.183,610.55,609.74,0.32800865]
[1743546118869,0.988,610.54,609.74,0.32800865]
[1743546130883,1.183,610.55,609.74,0.32800865]
[1743546132580,1.183,610.55,609.82,1.21620832]
[1743546134781,0.687,610.54,609.82,1.21620832]
[1743546135786,0.687,610.54,609.75,1.21620832]
[1743546135980,0.687,610.54,609.76,0.3279979]
[1743546138488,0.687,610.54,609.82,1.21620832]
[1743546142889,0.687,610.54,609.8,1.21620832]
[1743546143091,0.687,610.54,609.81,0.327971]
[1743546145591,0.687,610.54,609.86,1.21620832]
[1743546147592,0.687,610.54,609.81,0.327971]
[1743546152195,0.796,610.53,609.81,0.327971]
[1743546164097,1.079,610.52,609.81,0.327971]
[1743546169002,1.002,610.51,609.81,0.327971]
[1743546175608,1.002,610.51,609.94,1.21620832]
[1743546177613,1.002,610.51,609.93,1.21620832]
[1743546179614,1.002,610.51,609.95,1.21620832]
[1743546181217,1.002,610.51,609.92,1.21620832]
[1743546184013,1.002,610.51,609.93,1.21620832]
[1743546186216,1.002,610.51,609.85,1.21620832]
[1743546186420,1.002,610.51,609.86,0.32794411]